[Event "January 2 Late 2024"]
[Site "https://www.chess.com"]
[Date "2024.01.02"]
[Round "4"]
[White "Garcia, Erick"]
[Black "Aronian, Levon"]
[Result "0-1"]
[Board "37"]
[TimeControl "180+1"]
[WhiteFideId "2058880"]
[BlackFideId "13300474"]
[WhiteElo "2614"]
[BlackElo "3102"]
[WhiteTeam "USA"]
[BlackTeam "USA"]
[WhiteClock "0:00:40"]
[BlackClock "0:01:59"]

1. d4 {[%clk 0:03:00]}  Nf6 {[%clk 0:02:59]} 2. c4 {[%clk 0:02:59]}  c5 {[%clk 0:03:00]} 3. d5 {[%clk 0:02:58]}  g6 {[%clk 0:03:00]} 4. Nc3 {[%clk 0:02:58]}  Bg7 {[%clk 0:03:01]} 5. e4 {[%clk 0:02:59]}  O-O {[%clk 0:03:01]} 6. Nf3 {[%clk 0:02:59]}  d6 {[%clk 0:03:01]} 7. h3 {[%clk 0:02:59]}  Nbd7 {[%clk 0:03:01]} 8. Bd3 {[%clk 0:02:57]}  e6 {[%clk 0:03:01]} 9. O-O {[%clk 0:02:56]}  a6 {[%clk 0:03:00]} 10. a4 {[%clk 0:02:55]}  b6 {[%clk 0:03:00]} 11. Re1 {[%clk 0:02:54]}  e5 {[%clk 0:03:00]} 12. Bg5 {[%clk 0:02:50]}  h6 {[%clk 0:03:00]} 13. Be3 {[%clk 0:02:49]}  Nh7 {[%clk 0:03:00]} 14. Qd2 {[%clk 0:02:49]}  f5 {[%clk 0:03:00]} 15. exf5 {[%clk 0:02:41]}  gxf5 {[%clk 0:03:00]} 16. Bxh6 {[%clk 0:02:40]}  Qf6 {[%clk 0:02:59]} 17. Bxg7 {[%clk 0:02:36]}  Kxg7 {[%clk 0:02:59]} 18. Bc2 {[%clk 0:02:28]}  Kh8 {[%clk 0:02:58]} 19. Nh2 {[%clk 0:02:14]}  Rg8 {[%clk 0:02:56]} 20. f4 {[%clk 0:02:10]}  Ra7 {[%clk 0:02:53]} 21. Kh1 {[%clk 0:02:00]}  e4 {[%clk 0:02:51]} 22. Nd1 {[%clk 0:01:57]}  Qh6 {[%clk 0:02:47]} 23. Rf1 {[%clk 0:01:53]}  Ndf6 {[%clk 0:02:46]} 24. Ne3 {[%clk 0:01:53]}  Nh5 {[%clk 0:02:45]} 25. Rf2 {[%clk 0:01:49]}  Rag7 {[%clk 0:02:41]} 26. Qc3 {[%clk 0:01:41]}  N7f6 {[%clk 0:02:34]} 27. a5 {[%clk 0:01:29]}  bxa5 {[%clk 0:02:34]} 28. Rxa5 {[%clk 0:01:28]}  Kh7 {[%clk 0:02:14]} 29. Kg1 {[%clk 0:01:18]}  Nxf4 {[%clk 0:02:09]} 30. Kh1 {[%clk 0:01:01]}  N6h5 {[%clk 0:02:02]} 31. Nhf1 {[%clk 0:00:54]}  Ng3+ {[%clk 0:02:00]} 32. Nxg3 {[%clk 0:00:53]}  Rxg3 {[%clk 0:02:01]} 33. Qd2 {[%clk 0:00:46]}  Nxh3 {[%clk 0:02:00]} 34. gxh3 {[%clk 0:00:40]}  Qxh3+ {[%clk 0:01:59]} 0-1

[Event "January 2 Late 2024"]
[Site "https://www.chess.com"]
[Date "2024.01.02"]
[Round "4"]
[White "Duda, Jan-Krzysztof"]
[Black "Titus, Andrew"]
[Result "1-0"]
[Board "38"]
[TimeControl "180+1"]
[WhiteFideId "1170546"]
[BlackFideId "2059770"]
[WhiteElo "3048"]
[BlackElo "2614"]
[WhiteTeam "POL"]
[BlackTeam "USA"]
[WhiteClock "0:02:07"]
[BlackClock "0:00:46"]

1. g3 {[%clk 0:03:00]}  d5 {[%clk 0:02:58]} 2. Bg2 {[%clk 0:03:01]}  Nf6 {[%clk 0:02:58]} 3. Nf3 {[%clk 0:03:01]}  e6 {[%clk 0:02:58]} 4. d3 {[%clk 0:03:00]}  Be7 {[%clk 0:02:59]} 5. Nbd2 {[%clk 0:03:01]}  O-O {[%clk 0:02:59]} 6. e4 {[%clk 0:03:01]}  dxe4 {[%clk 0:03:00]} 7. dxe4 {[%clk 0:03:02]}  c5 {[%clk 0:03:01]} 8. e5 {[%clk 0:03:01]}  Nfd7 {[%clk 0:03:00]} 9. O-O {[%clk 0:03:01]}  Nc6 {[%clk 0:03:01]} 10. Re1 {[%clk 0:03:02]}  Qc7 {[%clk 0:03:00]} 11. Qe2 {[%clk 0:03:02]}  b6 {[%clk 0:02:59]} 12. c3 {[%clk 0:03:01]}  Bb7 {[%clk 0:02:59]} 13. a4 {[%clk 0:03:01]}  Rfd8 {[%clk 0:02:52]} 14. h4 {[%clk 0:02:59]}  Nf8 {[%clk 0:02:52]} 15. h5 {[%clk 0:02:58]}  Rd7 {[%clk 0:02:46]} 16. h6 {[%clk 0:02:58]}  g6 {[%clk 0:02:44]} 17. Nc4 {[%clk 0:02:54]}  Rad8 {[%clk 0:02:39]} 18. Bg5 {[%clk 0:02:48]}  Ba6 {[%clk 0:02:32]} 19. Qe4 {[%clk 0:02:40]}  Bxc4 {[%clk 0:02:30]} 20. Qxc4 {[%clk 0:02:39]}  Bxg5 {[%clk 0:02:30]} 21. Nxg5 {[%clk 0:02:40]}  Nxe5 {[%clk 0:02:30]} 22. Qf4 {[%clk 0:02:40]}  f6 {[%clk 0:02:13]} 23. Nxe6 {[%clk 0:02:17]}  Nxe6 {[%clk 0:02:01]} 24. Qxf6 {[%clk 0:02:17]}  Nf8 {[%clk 0:01:35]} 25. Rxe5 {[%clk 0:02:17]}  Rf7 {[%clk 0:01:34]} 26. Qg5 {[%clk 0:02:16]}  Kh8 {[%clk 0:01:25]} 27. Bd5 {[%clk 0:02:15]}  Rdd7 {[%clk 0:01:14]} 28. Rae1 {[%clk 0:02:12]}  Qd6 {[%clk 0:01:01]} 29. Bxf7 {[%clk 0:02:08]}  Rxf7 {[%clk 0:01:02]} 30. Rd5 {[%clk 0:02:07]}  Qc6 {[%clk 0:00:58]} 31. Rd8 {[%clk 0:02:06]}  Qf3 {[%clk 0:00:52]} 32. Rxf8+ {[%clk 0:02:06]}  Rxf8 {[%clk 0:00:51]} 33. Qe5+ {[%clk 0:02:07]}  Rf6 {[%clk 0:00:47]} 34. Qxf6+ {[%clk 0:02:07]}  Qxf6 {[%clk 0:00:46]} 35. Re8+ {[%clk 0:02:07]} 1-0

[Event "January 2 Late 2024"]
[Site "https://www.chess.com"]
[Date "2024.01.02"]
[Round "4"]
[White "Ambartsumova, Karina"]
[Black "Xiong, Jeffery"]
[Result "0-1"]
[Board "40"]
[TimeControl "180+1"]
[WhiteFideId "4166299"]
[BlackFideId "2047640"]
[WhiteElo "2608"]
[BlackElo "3013"]
[WhiteTeam "RUS"]
[BlackTeam "USA"]
[WhiteClock "0:00:03"]
[BlackClock "0:01:02"]

1. d4 {[%clk 0:03:00]}  g6 {[%clk 0:03:00]} 2. e4 {[%clk 0:02:59]}  Bg7 {[%clk 0:03:01]} 3. Nc3 {[%clk 0:02:59]}  a6 {[%clk 0:03:01]} 4. Be3 {[%clk 0:02:58]}  d6 {[%clk 0:03:02]} 5. h4 {[%clk 0:02:58]}  h6 {[%clk 0:03:01]} 6. f3 {[%clk 0:02:56]}  b5 {[%clk 0:03:01]} 7. Qd2 {[%clk 0:02:55]}  Bb7 {[%clk 0:03:01]} 8. Nh3 {[%clk 0:02:49]}  Nd7 {[%clk 0:03:02]} 9. a4 {[%clk 0:02:47]}  b4 {[%clk 0:03:01]} 10. Ne2 {[%clk 0:02:48]}  c5 {[%clk 0:03:01]} 11. c3 {[%clk 0:02:48]}  a5 {[%clk 0:03:00]} 12. Ng3 {[%clk 0:02:40]}  e6 {[%clk 0:02:51]} 13. Nf2 {[%clk 0:02:36]}  Ne7 {[%clk 0:02:49]} 14. Bb5 {[%clk 0:02:34]}  Bc6 {[%clk 0:02:50]} 15. Bxc6 {[%clk 0:02:26]}  Nxc6 {[%clk 0:02:50]} 16. h5 {[%clk 0:02:24]}  g5 {[%clk 0:02:51]} 17. O-O {[%clk 0:02:23]}  O-O {[%clk 0:02:47]} 18. Rfd1 {[%clk 0:02:15]}  bxc3 {[%clk 0:02:43]} 19. bxc3 {[%clk 0:02:15]}  cxd4 {[%clk 0:02:44]} 20. cxd4 {[%clk 0:02:15]}  f5 {[%clk 0:02:45]} 21. exf5 {[%clk 0:01:51]}  exf5 {[%clk 0:02:46]} 22. Ne2 {[%clk 0:01:51]}  f4 {[%clk 0:02:44]} 23. Qa2+ {[%clk 0:01:51]}  Kh8 {[%clk 0:02:43]} 24. Bd2 {[%clk 0:01:49]}  Qe8 {[%clk 0:02:29]} 25. Bc3 {[%clk 0:01:43]}  Qxh5 {[%clk 0:02:28]} 26. Qd5 {[%clk 0:01:33]}  Nb4 {[%clk 0:02:27]} 27. Qxd6 {[%clk 0:01:31]}  Qe8 {[%clk 0:02:23]} 28. d5 {[%clk 0:01:23]}  Ra6 {[%clk 0:02:09]} 29. Qc7 {[%clk 0:01:12]}  Rf7 {[%clk 0:02:09]} 30. Bxg7+ {[%clk 0:01:08]}  Kxg7 {[%clk 0:02:10]} 31. Nd4 {[%clk 0:01:07]}  Nf6 {[%clk 0:01:59]} 32. Qc4 {[%clk 0:00:42]}  Nfxd5 {[%clk 0:01:53]} 33. Re1 {[%clk 0:00:36]}  Ne3 {[%clk 0:01:53]} 34. Qc3 {[%clk 0:00:36]}  Kg6 {[%clk 0:01:49]} 35. Ng4 {[%clk 0:00:34]}  Re7 {[%clk 0:01:43]} 36. Qb3 {[%clk 0:00:09]}  Kh5 {[%clk 0:01:10]} 37. Nxe3 {[%clk 0:00:09]}  Rxe3 {[%clk 0:01:10]} 38. g4+ {[%clk 0:00:06]}  Kg6 {[%clk 0:01:04]} 39. Qb1+ {[%clk 0:00:06]}  Kf6 {[%clk 0:01:04]} 40. Qf5+ {[%clk 0:00:05]}  Kg7 {[%clk 0:01:05]} 41. Kg2 {[%clk 0:00:04]}  Rxe1 {[%clk 0:01:05]} 42. Rxe1 {[%clk 0:00:04]}  Qxe1 {[%clk 0:01:05]} 43. Qd7+ {[%clk 0:00:04]}  Kf6 {[%clk 0:01:05]} 44. Qf5+ {[%clk 0:00:04]}  Ke7 {[%clk 0:01:05]} 45. Qc5+ {[%clk 0:00:04]}  Kd7 {[%clk 0:00:59]} 46. Qb5+ {[%clk 0:00:04]}  Rc6 {[%clk 0:01:00]} 47. Qf5+ {[%clk 0:00:03]}  Kc7 {[%clk 0:00:58]} 48. Qf7+ {[%clk 0:00:03]}  Kb6 {[%clk 0:00:58]} 49. Nxc6 {[%clk 0:00:03]}  Qe2+ {[%clk 0:00:58]} 50. Kg1 {[%clk 0:00:02]}  Qe1+ {[%clk 0:00:58]} 51. Kg2 {[%clk 0:00:03]}  Qg3+ {[%clk 0:00:59]} 52. Kh1 {[%clk 0:00:03]}  Qxf3+ {[%clk 0:01:00]} 53. Kh2 {[%clk 0:00:03]}  Qg3+ {[%clk 0:01:00]} 54. Kh1 {[%clk 0:00:04]}  Qh3+ {[%clk 0:01:01]} 55. Kg1 {[%clk 0:00:04]}  Qxg4+ {[%clk 0:01:02]} 56. Kh1 {[%clk 0:00:04]}  Qh3+ {[%clk 0:01:02]} 57. Kg1 {[%clk 0:00:05]}  Nxc6 {[%clk 0:01:02]} 58. Qb3+ {[%clk 0:00:03]}  Qxb3 {[%clk 0:01:02]} 0-1

[Event "January 2 Late 2024"]
[Site "https://www.chess.com"]
[Date "2024.01.02"]
[Round "4"]
[White "Olenik Campa, Rudi"]
[Black "Iturrizaga Bonelli, Eduardo"]
[Result "0-1"]
[Board "41"]
[TimeControl "180+1"]
[WhiteFideId "14633264"]
[BlackFideId "3901211"]
[WhiteElo "2606"]
[BlackElo "2973"]
[WhiteTeam "SLO"]
[BlackTeam "ESP"]
[WhiteClock "0:00:03"]
[BlackClock "0:00:43"]

1. e4 {[%clk 0:02:58]}  c5 {[%clk 0:02:59]} 2. Nf3 {[%clk 0:02:58]}  e6 {[%clk 0:03:00]} 3. c4 {[%clk 0:02:57]}  a6 {[%clk 0:03:00]} 4. Nc3 {[%clk 0:02:56]}  Nc6 {[%clk 0:02:58]} 5. d4 {[%clk 0:02:56]}  cxd4 {[%clk 0:02:59]} 6. Nxd4 {[%clk 0:02:57]}  Nge7 {[%clk 0:02:59]} 7. Be3 {[%clk 0:02:56]}  Ng6 {[%clk 0:02:56]} 8. Be2 {[%clk 0:02:55]}  Qc7 {[%clk 0:02:55]} 9. Qd2 {[%clk 0:02:52]}  Be7 {[%clk 0:02:54]} 10. Rc1 {[%clk 0:02:50]}  O-O {[%clk 0:02:53]} 11. O-O {[%clk 0:02:45]}  Bf6 {[%clk 0:02:43]} 12. Nd5 {[%clk 0:02:20]}  exd5 {[%clk 0:02:44]} 13. cxd5 {[%clk 0:02:20]}  Qe5 {[%clk 0:02:44]} 14. dxc6 {[%clk 0:02:16]}  dxc6 {[%clk 0:02:45]} 15. Qc2 {[%clk 0:02:06]}  Nf4 {[%clk 0:02:40]} 16. Bf3 {[%clk 0:02:04]}  Be6 {[%clk 0:02:16]} 17. Nxe6 {[%clk 0:02:02]}  Nxe6 {[%clk 0:02:12]} 18. b4 {[%clk 0:01:59]}  Rfd8 {[%clk 0:02:06]} 19. Rfd1 {[%clk 0:01:57]}  Bg5 {[%clk 0:01:58]} 20. Bxg5 {[%clk 0:01:49]}  Qxg5 {[%clk 0:01:57]} 21. g3 {[%clk 0:01:31]}  Nd4 {[%clk 0:01:49]} 22. Qc3 {[%clk 0:01:21]}  Rd6 {[%clk 0:01:46]} 23. Kg2 {[%clk 0:01:14]}  Rad8 {[%clk 0:01:45]} 24. h4 {[%clk 0:00:59]}  Qe5 {[%clk 0:01:30]} 25. Rd3 {[%clk 0:00:40]}  Nxf3 {[%clk 0:01:17]} 26. Rxf3 {[%clk 0:00:33]}  Qxe4 {[%clk 0:01:17]} 27. Re1 {[%clk 0:00:33]}  Qd5 {[%clk 0:01:12]} 28. Kh2 {[%clk 0:00:33]}  Re6 {[%clk 0:01:07]} 29. Rxe6 {[%clk 0:00:26]}  Qxe6 {[%clk 0:01:08]} 30. Re3 {[%clk 0:00:24]}  Qxa2 {[%clk 0:01:07]} 31. Kg2 {[%clk 0:00:18]}  Qd5+ {[%clk 0:01:07]} 32. Kh2 {[%clk 0:00:18]}  h6 {[%clk 0:01:07]} 33. Re7 {[%clk 0:00:17]}  Rd7 {[%clk 0:01:03]} 34. Re8+ {[%clk 0:00:17]}  Kh7 {[%clk 0:01:04]} 35. Qe3 {[%clk 0:00:17]}  Qf5 {[%clk 0:01:01]} 36. Re5 {[%clk 0:00:12]}  Qc2 {[%clk 0:01:01]} 37. Re8 {[%clk 0:00:10]}  Qf5 {[%clk 0:00:47]} 38. Kg2 {[%clk 0:00:09]}  Rd3 {[%clk 0:00:44]} 39. Qe2 {[%clk 0:00:09]}  Qd5+ {[%clk 0:00:44]} 40. Kh2 {[%clk 0:00:09]}  Rd1 {[%clk 0:00:43]} 41. Re4 {[%clk 0:00:03]}  f5 {[%clk 0:00:43]} 0-1

[Event "January 2 Late 2024"]
[Site "https://www.chess.com"]
[Date "2024.01.02"]
[Round "4"]
[White "Zomorrodian, Eilia"]
[Black "Salem, A.R. Saleh"]
[Result "0-1"]
[Board "42"]
[TimeControl "180+1"]
[WhiteFideId "12551805"]
[BlackFideId "9301348"]
[WhiteElo "2590"]
[BlackElo "2965"]
[WhiteTeam "CAN"]
[BlackTeam "UAE"]
[WhiteClock "0:00:10"]
[BlackClock "0:00:50"]

1. e4 {[%clk 0:03:00]}  e5 {[%clk 0:02:56]} 2. Nf3 {[%clk 0:03:00]}  Nc6 {[%clk 0:02:57]} 3. Bc4 {[%clk 0:03:00]}  Nf6 {[%clk 0:02:56]} 4. d3 {[%clk 0:03:00]}  Bc5 {[%clk 0:02:57]} 5. c3 {[%clk 0:03:00]}  a6 {[%clk 0:02:55]} 6. Nbd2 {[%clk 0:03:00]}  d6 {[%clk 0:02:55]} 7. Bb3 {[%clk 0:03:00]}  O-O {[%clk 0:02:54]} 8. h3 {[%clk 0:02:57]}  Re8 {[%clk 0:02:55]} 9. Nf1 {[%clk 0:02:58]}  d5 {[%clk 0:02:48]} 10. Qe2 {[%clk 0:02:58]}  a5 {[%clk 0:02:46]} 11. Ba4 {[%clk 0:02:57]}  Rb8 {[%clk 0:02:44]} 12. Bb5 {[%clk 0:02:50]}  a4 {[%clk 0:02:32]} 13. Bxa4 {[%clk 0:02:46]}  b5 {[%clk 0:02:32]} 14. Bb3 {[%clk 0:02:45]}  Be6 {[%clk 0:02:23]} 15. Ng3 {[%clk 0:02:44]}  Na5 {[%clk 0:02:23]} 16. Bc2 {[%clk 0:02:36]}  dxe4 {[%clk 0:02:09]} 17. Nxe4 {[%clk 0:02:37]}  Nxe4 {[%clk 0:02:08]} 18. Qxe4 {[%clk 0:02:38]}  Bd5 {[%clk 0:02:04]} 19. Qg4 {[%clk 0:02:24]}  b4 {[%clk 0:01:56]} 20. O-O {[%clk 0:02:14]}  Rb6 {[%clk 0:01:56]} 21. Nh4 {[%clk 0:02:12]}  Be7 {[%clk 0:01:36]} 22. Nf3 {[%clk 0:01:02]}  Rg6 {[%clk 0:01:34]} 23. Qh5 {[%clk 0:01:02]}  Qa8 {[%clk 0:01:31]} 24. Kh2 {[%clk 0:00:56]}  Bd6 {[%clk 0:01:26]} 25. Nh4 {[%clk 0:00:43]}  Bxg2 {[%clk 0:01:14]} 26. Nxg6 {[%clk 0:00:38]}  hxg6 {[%clk 0:00:59]} 27. Qe2 {[%clk 0:00:18]}  Bf3 {[%clk 0:00:51]} 28. Qe1 {[%clk 0:00:14]}  e4+ {[%clk 0:00:50]} 29. Kg1 {[%clk 0:00:10]}  Qc8 {[%clk 0:00:50]} 0-1

[Event "January 2 Late 2024"]
[Site "https://www.chess.com"]
[Date "2024.01.02"]
[Round "4"]
[White "Grycel, Kamil"]
[Black "Yoo, Christopher Woojin"]
[Result "0-1"]
[Board "43"]
[TimeControl "180+1"]
[WhiteFideId "1115499"]
[BlackFideId "30909694"]
[WhiteElo "2589"]
[BlackElo "2933"]
[WhiteTeam "POL"]
[BlackTeam "USA"]
[WhiteClock "0:00:04"]
[BlackClock "0:00:16"]

1. d4 {[%clk 0:03:00]}  d5 {[%clk 0:02:58]} 2. Bf4 {[%clk 0:03:00]}  Nf6 {[%clk 0:02:58]} 3. Nf3 {[%clk 0:03:00]}  c5 {[%clk 0:02:58]} 4. c3 {[%clk 0:03:00]}  Qb6 {[%clk 0:02:53]} 5. Qb3 {[%clk 0:02:59]}  Nc6 {[%clk 0:02:53]} 6. e3 {[%clk 0:02:48]}  c4 {[%clk 0:02:51]} 7. Qc2 {[%clk 0:02:48]}  Bf5 {[%clk 0:02:50]} 8. Qc1 {[%clk 0:02:48]}  e6 {[%clk 0:02:50]} 9. Nbd2 {[%clk 0:02:48]}  Rc8 {[%clk 0:02:43]} 10. h3 {[%clk 0:02:47]}  h6 {[%clk 0:02:40]} 11. Be2 {[%clk 0:02:47]}  Be7 {[%clk 0:02:41]} 12. Bd1 {[%clk 0:02:48]}  O-O {[%clk 0:02:34]} 13. Bc2 {[%clk 0:02:48]}  Qa6 {[%clk 0:02:30]} 14. Bxf5 {[%clk 0:02:45]}  exf5 {[%clk 0:02:31]} 15. Qc2 {[%clk 0:02:44]}  Ne4 {[%clk 0:02:32]} 16. g4 {[%clk 0:02:35]}  g5 {[%clk 0:01:07]} 17. Bh2 {[%clk 0:02:31]}  fxg4 {[%clk 0:01:03]} 18. hxg4 {[%clk 0:02:27]}  Nxd2 {[%clk 0:00:56]} 19. Nxd2 {[%clk 0:02:19]}  Nd8 {[%clk 0:00:54]} 20. Bg3 {[%clk 0:02:15]}  Kg7 {[%clk 0:00:44]} 21. Nf3 {[%clk 0:02:04]}  Qg6 {[%clk 0:00:41]} 22. Qd2 {[%clk 0:01:58]}  f6 {[%clk 0:00:38]} 23. O-O-O {[%clk 0:00:43]}  Nf7 {[%clk 0:00:37]} 24. Qc2 {[%clk 0:00:43]}  Qxc2+ {[%clk 0:00:36]} 25. Kxc2 {[%clk 0:00:44]}  Bd6 {[%clk 0:00:36]} 26. Rhg1 {[%clk 0:00:40]}  Rfe8 {[%clk 0:00:35]} 27. Nd2 {[%clk 0:00:40]}  b5 {[%clk 0:00:34]} 28. Rde1 {[%clk 0:00:38]}  Bxg3 {[%clk 0:00:33]} 29. Rxg3 {[%clk 0:00:38]}  Nd6 {[%clk 0:00:34]} 30. Rgg1 {[%clk 0:00:36]}  a5 {[%clk 0:00:33]} 31. f3 {[%clk 0:00:36]}  Re6 {[%clk 0:00:31]} 32. Re2 {[%clk 0:00:32]}  Rce8 {[%clk 0:00:30]} 33. Rge1 {[%clk 0:00:33]}  f5 {[%clk 0:00:26]} 34. gxf5 {[%clk 0:00:32]}  Nxf5 {[%clk 0:00:27]} 35. e4 {[%clk 0:00:32]}  Ng3 {[%clk 0:00:26]} 36. Rg2 {[%clk 0:00:29]}  Nh5 {[%clk 0:00:26]} 37. e5 {[%clk 0:00:15]}  Nf4 {[%clk 0:00:25]} 38. Rh2 {[%clk 0:00:16]}  Rg6 {[%clk 0:00:24]} 39. Reh1 {[%clk 0:00:15]}  Rf8 {[%clk 0:00:24]} 40. Nf1 {[%clk 0:00:15]}  Ne6 {[%clk 0:00:23]} 41. Rh3 {[%clk 0:00:14]}  g4 {[%clk 0:00:23]} 42. fxg4 {[%clk 0:00:14]}  Rf2+ {[%clk 0:00:23]} 43. Kb1 {[%clk 0:00:14]}  Nf4 {[%clk 0:00:23]} 44. R3h2 {[%clk 0:00:13]}  Rf3 {[%clk 0:00:18]} 45. Rg1 {[%clk 0:00:11]}  Kh7 {[%clk 0:00:15]} 46. Nd2 {[%clk 0:00:11]}  Re3 {[%clk 0:00:15]} 47. Rf2 {[%clk 0:00:10]}  Nd3 {[%clk 0:00:15]} 48. Rf7+ {[%clk 0:00:10]}  Rg7 {[%clk 0:00:15]} 49. Nf3 {[%clk 0:00:10]}  Rxf7 {[%clk 0:00:14]} 50. Nh4 {[%clk 0:00:10]}  Re2 {[%clk 0:00:14]} 51. g5 {[%clk 0:00:11]}  Rxb2+ {[%clk 0:00:14]} 52. Ka1 {[%clk 0:00:11]}  hxg5 {[%clk 0:00:14]} 53. Ng2 {[%clk 0:00:09]}  Rff2 {[%clk 0:00:15]} 54. Rh1+ {[%clk 0:00:04]}  Kg6 {[%clk 0:00:16]} 0-1

[Event "January 2 Late 2024"]
[Site "https://www.chess.com"]
[Date "2024.01.02"]
[Round "4"]
[White "Cervantes Landeiro, Thalia"]
[Black "Brodsky, David"]
[Result "1/2-1/2"]
[Board "47"]
[TimeControl "180+1"]
[WhiteFideId "3520498"]
[BlackFideId "2073250"]
[WhiteElo "2568"]
[BlackElo "2890"]
[WhiteTeam "USA"]
[BlackTeam "USA"]
[WhiteClock "0:00:19"]
[BlackClock "0:00:08"]

1. d4 {[%clk 0:03:00]}  Nf6 {[%clk 0:02:54]} 2. c4 {[%clk 0:02:58]}  e6 {[%clk 0:02:55]} 3. Nf3 {[%clk 0:02:58]}  b6 {[%clk 0:02:53]} 4. g3 {[%clk 0:02:58]}  Ba6 {[%clk 0:02:53]} 5. Qa4 {[%clk 0:02:57]}  Bb7 {[%clk 0:02:52]} 6. Bg2 {[%clk 0:02:56]}  c5 {[%clk 0:02:52]} 7. dxc5 {[%clk 0:02:54]}  Bxc5 {[%clk 0:02:53]} 8. O-O {[%clk 0:02:54]}  O-O {[%clk 0:02:53]} 9. Nc3 {[%clk 0:02:53]}  Ne4 {[%clk 0:02:51]} 10. Nxe4 {[%clk 0:02:33]}  Bxe4 {[%clk 0:02:51]} 11. Rd1 {[%clk 0:02:33]}  h6 {[%clk 0:02:34]} 12. Bf4 {[%clk 0:02:30]}  Qf6 {[%clk 0:02:17]} 13. b4 {[%clk 0:02:17]}  Be7 {[%clk 0:01:51]} 14. Be5 {[%clk 0:02:06]}  Qf5 {[%clk 0:01:39]} 15. Bxb8 {[%clk 0:01:50]}  Raxb8 {[%clk 0:01:29]} 16. Rxd7 {[%clk 0:01:41]}  Bf6 {[%clk 0:01:05]} 17. Rc1 {[%clk 0:01:40]}  Rbc8 {[%clk 0:00:48]} 18. Qxa7 {[%clk 0:01:28]}  Bb2 {[%clk 0:00:38]} 19. Rcd1 {[%clk 0:01:21]}  Bc2 {[%clk 0:00:27]} 20. Nd4 {[%clk 0:01:14]}  Bxd4 {[%clk 0:00:25]} 21. R1xd4 {[%clk 0:01:15]}  e5 {[%clk 0:00:25]} 22. Rd2 {[%clk 0:01:09]}  Rxc4 {[%clk 0:00:21]} 23. h3 {[%clk 0:00:46]}  Be4 {[%clk 0:00:19]} 24. Bxe4 {[%clk 0:00:38]}  Qxe4 {[%clk 0:00:19]} 25. Qxb6 {[%clk 0:00:36]}  Rxb4 {[%clk 0:00:18]} 26. Qd6 {[%clk 0:00:28]}  Rb1+ {[%clk 0:00:16]} 27. Rd1 {[%clk 0:00:28]}  Rb2 {[%clk 0:00:13]} 28. a4 {[%clk 0:00:25]}  Qxe2 {[%clk 0:00:11]} 29. Rf1 {[%clk 0:00:23]}  Ra2 {[%clk 0:00:11]} 30. Rd8 {[%clk 0:00:22]}  Rxd8 {[%clk 0:00:11]} 31. Qxd8+ {[%clk 0:00:23]}  Kh7 {[%clk 0:00:11]} 32. Qd7 {[%clk 0:00:22]}  f6 {[%clk 0:00:09]} 33. Qf5+ {[%clk 0:00:20]}  Kg8 {[%clk 0:00:08]} 34. Qe6+ {[%clk 0:00:19]}  Kh7 {[%clk 0:00:08]} 35. Qf5+ {[%clk 0:00:19]}  Kg8 {[%clk 0:00:08]} 36. Qe6+ {[%clk 0:00:19]}  Kh7 {[%clk 0:00:08]} 37. Qf5+ {[%clk 0:00:19]} 1/2-1/2

[Event "January 2 Late 2024"]
[Site "https://www.chess.com"]
[Date "2024.01.02"]
[Round "4"]
[White "Batsuren, Dambasuren"]
[Black "Taboas Rodriguez, Daniel"]
[Result "1-0"]
[Board "49"]
[TimeControl "180+1"]
[WhiteFideId "4902920"]
[BlackFideId "2208466"]
[WhiteElo "2849"]
[BlackElo "2567"]
[WhiteTeam "MGL"]
[BlackTeam "ESP"]
[WhiteClock "0:01:18"]
[BlackClock "0:00:00"]

1. d4 {[%clk 0:03:00]}  Nf6 {[%clk 0:02:59]} 2. c4 {[%clk 0:03:01]}  g6 {[%clk 0:03:00]} 3. g3 {[%clk 0:03:01]}  Bg7 {[%clk 0:03:00]} 4. Bg2 {[%clk 0:03:01]}  O-O {[%clk 0:03:00]} 5. Nc3 {[%clk 0:03:02]}  d6 {[%clk 0:02:59]} 6. Nf3 {[%clk 0:03:03]}  Nbd7 {[%clk 0:02:59]} 7. O-O {[%clk 0:03:03]}  e5 {[%clk 0:03:00]} 8. e4 {[%clk 0:03:04]}  c6 {[%clk 0:03:00]} 9. h3 {[%clk 0:03:04]}  a5 {[%clk 0:02:59]} 10. b3 {[%clk 0:03:04]}  exd4 {[%clk 0:02:57]} 11. Nxd4 {[%clk 0:03:05]}  Re8 {[%clk 0:02:57]} 12. Be3 {[%clk 0:03:02]}  Nc5 {[%clk 0:02:57]} 13. Qc2 {[%clk 0:03:03]}  Qe7 {[%clk 0:02:41]} 14. Rfe1 {[%clk 0:03:03]}  h5 {[%clk 0:02:30]} 15. f3 {[%clk 0:02:54]}  Nfd7 {[%clk 0:02:25]} 16. Bf2 {[%clk 0:02:48]}  Ne5 {[%clk 0:02:24]} 17. Rad1 {[%clk 0:02:48]}  a4 {[%clk 0:02:10]} 18. f4 {[%clk 0:02:46]}  axb3 {[%clk 0:02:09]} 19. axb3 {[%clk 0:02:46]}  Ned7 {[%clk 0:02:01]} 20. b4 {[%clk 0:02:41]}  Ne6 {[%clk 0:01:59]} 21. Nf5 {[%clk 0:02:41]}  gxf5 {[%clk 0:01:50]} 22. exf5 {[%clk 0:02:42]}  Qf6 {[%clk 0:01:47]} 23. fxe6 {[%clk 0:02:41]}  Qxc3 {[%clk 0:01:41]} 24. exd7 {[%clk 0:02:30]}  Bxd7 {[%clk 0:01:38]} 25. Rxe8+ {[%clk 0:02:25]}  Rxe8 {[%clk 0:01:36]} 26. Qxc3 {[%clk 0:02:20]}  Bxc3 {[%clk 0:01:37]} 27. Rxd6 {[%clk 0:02:21]}  Be6 {[%clk 0:01:34]} 28. b5 {[%clk 0:02:19]}  Bb4 {[%clk 0:01:20]} 29. Rd1 {[%clk 0:02:09]}  Rc8 {[%clk 0:00:40]} 30. bxc6 {[%clk 0:01:59]}  bxc6 {[%clk 0:00:41]} 31. c5 {[%clk 0:02:00]}  Kf8 {[%clk 0:00:28]} 32. Rd6 {[%clk 0:01:57]}  Ra8 {[%clk 0:00:25]} 33. Rd1 {[%clk 0:01:47]}  Ra5 {[%clk 0:00:22]} 34. Rc1 {[%clk 0:01:41]}  Bd7 {[%clk 0:00:18]} 35. h4 {[%clk 0:01:32]}  Ke7 {[%clk 0:00:18]} 36. Bf3 {[%clk 0:01:32]}  Ba3 {[%clk 0:00:12]} 37. Ra1 {[%clk 0:01:30]}  Bg4 {[%clk 0:00:07]} 38. Bxc6 {[%clk 0:01:24]}  Bb4 {[%clk 0:00:03]} 39. Rxa5 {[%clk 0:01:22]}  Bxa5 {[%clk 0:00:04]} 40. Bd5 {[%clk 0:01:18]}  f6 {[%clk 0:00:00]} 41. Kg2 {[%clk 0:01:18]} 1-0

[Event "January 2 Late 2024"]
[Site "https://www.chess.com"]
[Date "2024.01.02"]
[Round "4"]
[White "Kotlyar, Kirill"]
[Black "Maksimovic, Bojan"]
[Result "0-1"]
[Board "50"]
[TimeControl "180+1"]
[WhiteFideId "24145599"]
[BlackFideId "14408120"]
[WhiteElo "2557"]
[BlackElo "2844"]
[WhiteTeam "RUS"]
[BlackTeam "BIH"]
[WhiteClock "0:01:20"]
[BlackClock "0:00:59"]

1. e4 {[%clk 0:03:00]}  g6 {[%clk 0:03:00]} 2. d4 {[%clk 0:03:00]}  Nf6 {[%clk 0:03:01]} 3. Nc3 {[%clk 0:03:01]}  d5 {[%clk 0:03:01]} 4. e5 {[%clk 0:02:55]}  Ne4 {[%clk 0:03:01]} 5. Nce2 {[%clk 0:02:51]}  f6 {[%clk 0:03:01]} 6. f3 {[%clk 0:02:46]}  Ng5 {[%clk 0:03:01]} 7. Bxg5 {[%clk 0:02:43]}  fxg5 {[%clk 0:03:02]} 8. Qd2 {[%clk 0:02:38]}  c5 {[%clk 0:03:02]} 9. c3 {[%clk 0:02:37]}  Nc6 {[%clk 0:03:02]} 10. Nh3 {[%clk 0:02:30]}  Bxh3 {[%clk 0:02:57]} 11. gxh3 {[%clk 0:02:30]}  e6 {[%clk 0:02:58]} 12. Rg1 {[%clk 0:02:30]}  cxd4 {[%clk 0:02:56]} 13. cxd4 {[%clk 0:02:26]}  Qb6 {[%clk 0:02:41]} 14. a3 {[%clk 0:02:22]}  Be7 {[%clk 0:02:27]} 15. Rd1 {[%clk 0:02:10]}  Rf8 {[%clk 0:02:17]} 16. f4 {[%clk 0:01:59]}  gxf4 {[%clk 0:02:04]} 17. Nxf4 {[%clk 0:01:55]}  Bh4+ {[%clk 0:02:01]} 18. Ke2 {[%clk 0:01:55]}  g5 {[%clk 0:01:43]} 19. Qd3 {[%clk 0:01:29]}  Rxf4 {[%clk 0:01:35]} 20. Qxh7 {[%clk 0:01:27]}  Qxb2+ {[%clk 0:01:19]} 21. Rd2 {[%clk 0:01:20]}  Nxd4+ {[%clk 0:01:18]} 22. Ke3 {[%clk 0:01:20]}  Rf3# {[%clk 0:00:59]} 0-1